[Event "Swedish Chess Championship 2021: Sverigemastarklassen"]
[Site "Scandic Helsingborg Nord, Florettgatan 41, Helsingborg, Sweden"]
[Date "2021.07.08"]
[Round "6.1"]
[White "Cramling, Pia"]
[Black "Westerberg, Jonathan"]
[Result "1/2-1/2"]
[TimeControl "90 minutes for 40 moves + 30 minutes for the rest of the game + 30 seconds per move from move one."]
[WhiteTitle "GM"]
[BlackTitle "GM"]
[WhiteFideId "1700030"]
[BlackFideId "1701754"]
[WhiteElo "2459"]
[BlackElo "2534"]

1. d4 {[%clk 01:30:53]} {[%emt 00:00:07]} d5 {[%clk 01:30:55]} {[%emt
00:00:06]} 2. Nf3 {[%clk 01:30:13]} {[%emt 00:01:10]} Nf6 {[%clk 01:31:20]}
{[%emt 00:00:05]} 3. c4 {[%clk 01:30:31]} {[%emt 00:00:12]} dxc4 {[%clk
01:31:45]} {[%emt 00:00:05]} 4. e3 {[%clk 01:30:46]} {[%emt 00:00:14]} Bg4
{[%clk 01:32:09]} {[%emt 00:00:06]} 5. Bxc4 {[%clk 01:30:44]} {[%emt 00:00:32]}
e6 {[%clk 01:32:37]} {[%emt 00:00:02]} 6. h3 {[%clk 01:28:16]} {[%emt
00:02:57]} Bh5 {[%clk 01:33:04]} {[%emt 00:00:04]} 7. O-O {[%clk 01:28:07]}
{[%emt 00:00:39]} a6 {[%clk 01:33:18]} {[%emt 00:00:16]} 8. b3 {[%clk
01:24:25]} {[%emt 00:04:12]} Nc6 {[%clk 01:32:43]} {[%emt 00:01:05]} 9. Bb2
{[%clk 01:24:09]} {[%emt 00:00:46]} Bd6 {[%clk 01:32:56]} {[%emt 00:00:17]} 10.
Be2 {[%clk 01:20:14]} {[%emt 00:04:25]} O-O {[%clk 01:32:32]} {[%emt 00:00:55]}
11. Nbd2 {[%clk 01:20:27]} {[%emt 00:00:17]} Nd5 {[%clk 01:15:30]} {[%emt
00:17:32]} 12. Rc1 {[%clk 01:01:09]} {[%emt 00:19:47]} f5 {[%clk 01:13:41]}
{[%emt 00:02:20]} 13. a3 {[%clk 00:55:22]} {[%emt 00:06:17]} Qf6 {[%clk
00:57:33]} {[%emt 00:16:38]} 14. Nc4 {[%clk 00:50:41]} {[%emt 00:05:10]} Qh6
{[%clk 00:55:06]} {[%emt 00:02:57]} 15. Rc2 {[%clk 00:44:36]} {[%emt 00:06:34]}
Rad8 {[%clk 00:53:49]} {[%emt 00:01:48]} 16. Ne1 {[%clk 00:37:40]} {[%emt
00:07:25]} Bxe2 {[%clk 00:49:26]} {[%emt 00:04:54]} 17. Rxe2 {[%clk 00:32:14]}
{[%emt 00:05:56]} Be7 {[%clk 00:43:42]} {[%emt 00:06:15]} 18. Nd3 {[%clk
00:30:27]} {[%emt 00:02:16]} b5 {[%clk 00:36:22]} {[%emt 00:07:50]} 19. Nce5
{[%clk 00:30:09]} {[%emt 00:00:48]} Nxe5 {[%clk 00:36:37]} {[%emt 00:00:16]} 20.
Nxe5 {[%clk 00:30:32]} {[%emt 00:00:06]} Bd6 {[%clk 00:36:16]} {[%emt
00:00:51]} 21. Nd3 {[%clk 00:29:34]} {[%emt 00:01:28]} f4 {[%clk 00:31:23]}
{[%emt 00:05:24]} 22. exf4 {[%clk 00:27:00]} {[%emt 00:03:03]} Nxf4 {[%clk
00:30:55]} {[%emt 00:00:58]} 23. Re3 {[%clk 00:23:30]} {[%emt 00:04:00]} Nd5
{[%clk 00:25:35]} {[%emt 00:05:51]} 24. Re4 {[%clk 00:23:23]} {[%emt 00:00:36]}
Qg6 {[%clk 00:20:00]} {[%emt 00:06:06]} 25. Qe2 {[%clk 00:22:41]} {[%emt
00:01:10]} Rde8 {[%clk 00:16:36]} {[%emt 00:03:56]} 26. Re1 {[%clk 00:21:12]}
{[%emt 00:01:57]} Rf6 {[%clk 00:17:03]} {[%emt 00:00:03]} 27. a4 {[%clk
00:18:42]} {[%emt 00:03:00]} Qf5 {[%clk 00:16:03]} {[%emt 00:01:30]} 28. axb5
{[%clk 00:14:23]} {[%emt 00:04:49]} axb5 {[%clk 00:16:23]} {[%emt 00:00:10]} 29.
Ra1 {[%clk 00:12:40]} {[%emt 00:02:12]} b4 {[%clk 00:15:40]} {[%emt 00:01:15]}
30. Qg4 {[%clk 00:10:42]} {[%emt 00:02:26]} Rff8 {[%clk 00:14:37]} {[%emt
00:01:33]} 31. Qxf5 {[%clk 00:09:42]} {[%emt 00:01:31]} exf5 {[%clk 00:14:18]}
{[%emt 00:00:49]} 32. Rxe8 {[%clk 00:09:56]} {[%emt 00:00:15]} Rxe8 {[%clk
00:14:45]} {[%emt 00:00:03]} 33. Kf1 {[%clk 00:09:52]} {[%emt 00:00:35]} Nc3
{[%clk 00:13:55]} {[%emt 00:01:21]} 34. Bxc3 {[%clk 00:07:49]} {[%emt
00:02:33]} bxc3 {[%clk 00:14:23]} {[%emt 00:00:02]} 35. Rc1 {[%clk 00:08:11]}
{[%emt 00:00:08]} Re4 {[%clk 00:14:13]} {[%emt 00:00:39]} 36. Rxc3 {[%clk
00:08:33]} {[%emt 00:00:08]} Rxd4 {[%clk 00:14:32]} {[%emt 00:00:11]} 37. Ke2
{[%clk 00:07:19]} {[%emt 00:01:43]} Kf7 {[%clk 00:14:39]} {[%emt 00:00:24]} 38.
Nc5 {[%clk 00:03:50]} {[%emt 00:03:59]} Rb4 {[%clk 00:13:52]} {[%emt 00:01:17]}
39. Nd3 {[%clk 00:02:30]} {[%emt 00:01:50]} Rb8 {[%clk 00:13:39]} {[%emt
00:00:43]} 40. Nc5 {[%clk 00:01:12]} {[%emt 00:01:47]} Rb5 {[%clk 00:07:56]}
{[%emt 00:06:13]} 41. Nd3 {[%clk 00:01:34]} {[%emt 00:00:08]} Ra5 {[%clk
00:07:50]} {[%emt 00:00:35]} 42. Ke3 {[%clk 00:28:29]} {[%emt 00:03:36]} Ra2
{[%clk 00:33:29]} {[%emt 00:04:49]} 43. Nc1 {[%clk 00:22:39]} {[%emt 00:06:22]}
Ra1 {[%clk 00:33:03]} {[%emt 00:00:58]} 44. Nd3 {[%clk 00:21:46]} {[%emt
00:01:22]} g5 {[%clk 00:32:37]} {[%emt 00:00:56]} 45. f4 {[%clk 00:18:30]}
{[%emt 00:03:46]} h6 {[%clk 00:31:36]} {[%emt 00:01:31]} 46. fxg5 {[%clk
00:17:43]} {[%emt 00:01:17]} hxg5 {[%clk 00:32:00]} {[%emt 00:00:05]} 47. Rc2
{[%clk 00:12:02]} {[%emt 00:06:11]} Kf6 {[%clk 00:27:15]} {[%emt 00:05:15]} 48.
Kd4 {[%clk 00:11:24]} {[%emt 00:01:06]} g4 {[%clk 00:26:32]} {[%emt 00:01:15]}
49. hxg4 {[%clk 00:11:32]} {[%emt 00:00:22]} fxg4 {[%clk 00:27:01]} {[%emt
00:00:01]} 50. Nc5 {[%clk 00:08:37]} {[%emt 00:03:24]} Rd1+ {[%clk 00:25:01]}
{[%emt 00:02:30]} 51. Ke3 {[%clk 00:08:48]} {[%emt 00:00:17]} Kf5 {[%clk
00:21:57]} {[%emt 00:03:37]} 52. Rf2+ {[%clk 00:08:27]} {[%emt 00:00:49]} Kg6
{[%clk 00:21:51]} {[%emt 00:00:38]} 53. Ne4 {[%clk 00:04:35]} {[%emt 00:04:19]}
Be5 {[%clk 00:21:28]} {[%emt 00:00:55]} 54. Ra2 {[%clk 00:04:22]} {[%emt
00:00:39]} Rd5 {[%clk 00:17:51]} {[%emt 00:04:12]} 55. Nd2 {[%clk 00:03:22]}
{[%emt 00:01:27]} Kf5 {[%clk 00:16:59]} {[%emt 00:01:25]} 56. Ra4 {[%clk
00:03:44]} {[%emt 00:00:06]} Rb5 {[%clk 00:16:03]} {[%emt 00:01:27]} 57. Rc4
{[%clk 00:03:56]} {[%emt 00:00:17]} Ra5 {[%clk 00:15:31]} {[%emt 00:01:04]} 58.
Re4 {[%clk 00:02:27]} {[%emt 00:01:57]} Ra1 {[%clk 00:15:04]} {[%emt 00:01:00]}
59. Rc4 {[%clk 00:02:26]} {[%emt 00:00:29]} Ra2 {[%clk 00:12:44]} {[%emt
00:02:51]} 60. Rc5 {[%clk 00:02:31]} {[%emt 00:00:24]} Ke6 {[%clk 00:12:50]}
{[%emt 00:00:24]} 61. Rc4 {[%clk 00:02:35]} {[%emt 00:00:26]} g3 {[%clk
00:11:22]} {[%emt 00:02:00]} 62. Re4 {[%clk 00:02:40]} {[%emt 00:00:23]} Kf5
{[%clk 00:10:40]} {[%emt 00:01:13]} 63. Rc4 {[%clk 00:02:59]} {[%emt 00:00:08]}
Bd6 {[%clk 00:10:41]} {[%emt 00:00:32]} 64. Rh4 {[%clk 00:01:29]} {[%emt
00:01:58]} Rb2 {[%clk 00:08:42]} {[%emt 00:02:31]} 65. Rh5+ {[%clk 00:01:43]}
{[%emt 00:00:15]} Kg4 {[%clk 00:08:00]} {[%emt 00:01:14]} 66. Rd5 {[%clk
00:02:01]} {[%emt 00:00:10]} Bf4+ {[%clk 00:06:54]} {[%emt 00:01:38]} 67. Ke2
{[%clk 00:02:27]} {[%emt 00:00:04]} Ra2 {[%clk 00:06:00]} {[%emt 00:01:25]} 68.
Rd8 {[%clk 00:00:41]} {[%emt 00:02:15]} Bd6 {[%clk 00:03:56]} {[%emt 00:02:34]}
69. Rg8+ {[%clk 00:00:45]} {[%emt 00:00:26]} Kf4 {[%clk 00:03:30]} {[%emt
00:00:57]} 70. Kd3 {[%clk 00:00:55]} {[%emt 00:00:18]} Bb4 {[%clk 00:03:28]}
{[%emt 00:00:33]} 71. Ne4 {[%clk 00:00:38]} {[%emt 00:00:47]} Rxg2 {[%clk
00:03:40]} {[%emt 00:00:19]} 72. Rg7 {[%clk 00:00:52]} {[%emt 00:00:16]} Rg1
{[%clk 00:02:12]} {[%emt 00:01:58]} 73. Rf7+ {[%clk 00:00:35]} {[%emt
00:00:47]} Ke5 {[%clk 00:02:28]} {[%emt 00:00:13]} 74. Rg7 {[%clk 00:00:38]}
{[%emt 00:00:27]} Rd1+ {[%clk 00:01:52]} {[%emt 00:01:07]} 75. Kc2 {[%clk
00:00:45]} {[%emt 00:00:23]} Rd4 {[%clk 00:01:29]} {[%emt 00:00:53]} 76. Nxg3
{[%clk 00:01:01]} {[%emt 00:00:13]} Rd2+ {[%clk 00:01:57]} {[%emt 00:00:02]} 77.
Kb1 {[%clk 00:01:06]} {[%emt 00:00:22]} c5 {[%clk 00:01:34]} {[%emt 00:00:57]}
78. Re7+ {[%clk 00:00:59]} {[%emt 00:00:35]} Kd6 {[%clk 00:02:00]} {[%emt
00:00:05]} 79. Nf5+ {[%clk 00:00:57]} {[%emt 00:00:31]} Kc6 {[%clk 00:02:13]}
{[%emt 00:00:19]} 80. Re3 {[%clk 00:01:04]} {[%emt 00:00:21]} Kb5 {[%clk
00:02:07]} {[%emt 00:00:37]} 81. Ng3 {[%clk 00:01:08]} {[%emt 00:00:25]} Ba3
{[%clk 00:02:04]} {[%emt 00:00:35]} 82. Ne2 {[%clk 00:01:16]} {[%emt 00:00:19]}
Kb4 {[%clk 00:01:55]} {[%emt 00:00:42]} 83. Nc3 {[%clk 00:00:52]} {[%emt
00:00:46]} Rb2+ {[%clk 00:00:54]} {[%emt 00:01:40]} 84. Ka1 {[%clk 00:01:20]}
{[%emt 00:00:01]} Rh2 {[%clk 00:00:53]} {[%emt 00:00:30]} 85. Nd5+ {[%clk
00:01:02]} {[%emt 00:00:47]} Ka5 {[%clk 00:01:00]} {[%emt 00:00:24]} 86. Re4
{[%clk 00:00:39]} {[%emt 00:00:51]} Bb2+ {[%clk 00:01:15]} {[%emt 00:00:18]} 87.
Kb1 {[%clk 00:01:04]} {[%emt 00:00:04]} Bd4 {[%clk 00:01:29]} {[%emt 00:00:15]}
88. b4+ {[%clk 00:00:49]} {[%emt 00:00:47]} Ka4 {[%clk 00:01:29]} {[%emt
00:00:30]} 89. bxc5 {[%clk 00:01:04]} {[%emt 00:00:14]} Kb3 {[%clk 00:01:46]}
{[%emt 00:00:13]} 90. Kc1 {[%clk 00:01:31]} {[%emt 00:00:03]} Kc4 {[%clk
00:01:15]} {[%emt 00:01:02]} 91. Nf4 {[%clk 00:01:45]} {[%emt 00:00:12]} Kxc5
{[%clk 00:00:56]} {[%emt 00:00:53]} 92. Ne6+ {[%clk 00:02:04]} {[%emt
00:00:10]} Kd5 {[%clk 00:01:24]} {[%emt 00:00:02]} 93. Rxd4+ {[%clk 00:02:29]}
{[%emt 00:00:04]} Kxe6 {[%clk 00:01:50]} {[%emt 00:00:03]} 1/2-1/2

[Event "Swedish Chess Championship 2021: Sverigemastarklassen"]
[Site "Scandic Helsingborg Nord, Florettgatan 41, Helsingborg, Sweden"]
[Date "2021.07.08"]
[Round "6.2"]
[White "Blomqvist, Erik"]
[Black "Lokander, Martin"]
[Result "0-1"]
[TimeControl "90 minutes for 40 moves + 30 minutes for the rest of the game + 30 seconds per move from move one."]
[WhiteTitle "GM"]
[BlackTitle "IM"]
[WhiteFideId "1709437"]
[BlackFideId "1709569"]
[WhiteElo "2535"]
[BlackElo "2437"]

1. Nf3 {[%clk 01:30:50]} {[%emt 00:00:09]} d5 {[%clk 01:30:19]} {[%emt
00:00:42]} 2. g3 {[%clk 01:31:07]} {[%emt 00:00:12]} Nc6 {[%clk 01:29:39]}
{[%emt 00:01:11]} 3. d4 {[%clk 01:30:03]} {[%emt 00:01:33]} Bf5 {[%clk
01:30:05]} {[%emt 00:00:04]} 4. Bg2 {[%clk 01:30:19]} {[%emt 00:00:15]} Nb4
{[%clk 01:29:30]} {[%emt 00:01:06]} 5. Na3 {[%clk 01:30:39]} {[%emt 00:00:09]}
e6 {[%clk 01:29:39]} {[%emt 00:00:21]} 6. O-O {[%clk 01:24:02]} {[%emt
00:07:06]} Nc6 {[%clk 01:29:27]} {[%emt 00:00:42]} 7. c4 {[%clk 01:20:51]}
{[%emt 00:03:41]} Bxa3 {[%clk 01:29:08]} {[%emt 00:00:50]} 8. bxa3 {[%clk
01:20:46]} {[%emt 00:00:34]} Be4 {[%clk 01:28:59]} {[%emt 00:00:39]} 9. cxd5
{[%clk 01:12:06]} {[%emt 00:09:10]} exd5 {[%clk 01:23:17]} {[%emt 00:06:13]} 10.
a4 {[%clk 01:04:53]} {[%emt 00:07:42]} Nge7 {[%clk 01:22:35]} {[%emt 00:01:12]}
11. e3 {[%clk 01:04:31]} {[%emt 00:00:53]} O-O {[%clk 01:22:04]} {[%emt
00:01:01]} 12. Ba3 {[%clk 01:03:36]} {[%emt 00:01:24]} Re8 {[%clk 01:22:09]}
{[%emt 00:00:25]} 13. Nd2 {[%clk 01:03:12]} {[%emt 00:00:55]} Bxg2 {[%clk
01:22:18]} {[%emt 00:00:22]} 14. Kxg2 {[%clk 01:03:40]} {[%emt 00:00:01]} Na5
{[%clk 01:13:33]} {[%emt 00:09:16]} 15. Rb1 {[%clk 01:02:56]} {[%emt 00:01:12]}
Nc8 {[%clk 01:08:06]} {[%emt 00:05:58]} 16. Qf3 {[%clk 00:54:54]} {[%emt
00:08:32]} c6 {[%clk 01:02:32]} {[%emt 00:06:05]} 17. e4 {[%clk 00:34:50]}
{[%emt 00:20:33]} dxe4 {[%clk 01:01:43]} {[%emt 00:01:19]} 18. Nxe4 {[%clk
00:35:17]} {[%emt 00:00:03]} Nc4 {[%clk 00:51:56]} {[%emt 00:10:17]} 19. Rxb7
{[%clk 00:31:47]} {[%emt 00:03:59]} Qd5 {[%clk 00:51:26]} {[%emt 00:01:00]} 20.
Re1 {[%clk 00:31:00]} {[%emt 00:01:16]} N8b6 {[%clk 00:45:30]} {[%emt
00:06:27]} 21. Bb4 {[%clk 00:18:21]} {[%emt 00:13:09]} a5 {[%clk 00:44:49]}
{[%emt 00:01:11]} 22. Be7 {[%clk 00:11:07]} {[%emt 00:07:44]} Rab8 {[%clk
00:12:45]} {[%emt 00:32:34]} 23. Ra7 {[%clk 00:08:59]} {[%emt 00:02:38]} Nc8
{[%clk 00:11:02]} {[%emt 00:02:13]} 24. Bf6 {[%clk 00:02:06]} {[%emt 00:07:23]}
Nxa7 {[%clk 00:10:01]} {[%emt 00:01:32]} 25. Qg4 {[%clk 00:02:31]} {[%emt
00:00:04]} g6 {[%clk 00:10:14]} {[%emt 00:00:17]} 26. Qf4 {[%clk 00:02:57]}
{[%emt 00:00:04]} Nd6 {[%clk 00:08:32]} {[%emt 00:02:12]} 27. f3 {[%clk
00:03:23]} {[%emt 00:00:05]} Nxe4 {[%clk 00:08:14]} {[%emt 00:00:48]} 28. Rxe4
{[%clk 00:03:28]} {[%emt 00:00:25]} Qf5 {[%clk 00:05:35]} {[%emt 00:03:09]} 29.
Qd6 {[%clk 00:02:33]} {[%emt 00:01:25]} h5 {[%clk 00:05:49]} {[%emt 00:00:16]}
30. g4 {[%clk 00:02:09]} {[%emt 00:00:54]} hxg4 {[%clk 00:05:48]} {[%emt
00:00:31]} 31. Rxg4 {[%clk 00:02:34]} {[%emt 00:00:04]} Rb2+ {[%clk 00:03:00]}
{[%emt 00:03:19]} 32. Kg3 {[%clk 00:03:03]} {[%emt 00:00:01]} Qe6 {[%clk
00:03:03]} {[%emt 00:00:27]} 33. Qe5 {[%clk 00:02:10]} {[%emt 00:01:22]} Qxg4+
{[%clk 00:03:18]} {[%emt 00:00:15]} 0-1

[Event "Swedish Chess Championship 2021: Sverigemastarklassen"]
[Site "Scandic Helsingborg Nord, Florettgatan 41, Helsingborg, Sweden"]
[Date "2021.07.08"]
[Round "6.3"]
[White "Seo, Jung Min"]
[Black "Smith, Axel"]
[Result "1-0"]
[TimeControl "90 minutes for 40 moves + 30 minutes for the rest of the game + 30 seconds per move from move one."]
[WhiteTitle "IM"]
[BlackTitle "GM"]
[WhiteFideId "1734687"]
[BlackFideId "1707930"]
[WhiteElo "2453"]
[BlackElo "2453"]

1. d4 {[%clk 01:30:56]} {[%emt 00:00:02]} d5 {[%clk 01:30:55]} {[%emt
00:00:06]} 2. c4 {[%clk 01:31:15]} {[%emt 00:00:11]} c6 {[%clk 01:31:22]}
{[%emt 00:00:03]} 3. Nf3 {[%clk 01:30:49]} {[%emt 00:00:55]} Nf6 {[%clk
01:31:50]} {[%emt 00:00:02]} 4. e3 {[%clk 01:31:12]} {[%emt 00:00:07]} Bg4
{[%clk 01:32:12]} {[%emt 00:00:09]} 5. h3 {[%clk 01:31:30]} {[%emt 00:00:11]}
Bh5 {[%clk 01:32:41]} {[%emt 00:00:02]} 6. g4 {[%clk 01:29:50]} {[%emt
00:02:10]} Bg6 {[%clk 01:33:09]} {[%emt 00:00:01]} 7. Ne5 {[%clk 01:30:10]}
{[%emt 00:00:09]} e6 {[%clk 01:31:18]} {[%emt 00:02:22]} 8. Nc3 {[%clk
01:28:27]} {[%emt 00:02:13]} Nbd7 {[%clk 01:30:10]} {[%emt 00:01:38]} 9. Nxg6
{[%clk 01:28:25]} {[%emt 00:00:32]} hxg6 {[%clk 01:30:38]} {[%emt 00:00:02]} 10.
g5 {[%clk 01:27:41]} {[%emt 00:01:13]} Ng8 {[%clk 01:29:42]} {[%emt 00:01:26]}
11. f4 {[%clk 01:15:04]} {[%emt 00:13:06]} Ne7 {[%clk 01:27:26]} {[%emt
00:02:46]} 12. Bd2 {[%clk 01:14:41]} {[%emt 00:00:53]} Nf5 {[%clk 01:27:09]}
{[%emt 00:00:48]} 13. Qf3 {[%clk 01:14:24]} {[%emt 00:00:45]} Bb4 {[%clk
01:08:34]} {[%emt 00:19:06]} 14. Bd3 {[%clk 01:06:56]} {[%emt 00:07:57]} Qe7
{[%clk 00:56:50]} {[%emt 00:12:14]} 15. a3 {[%clk 01:02:48]} {[%emt 00:04:38]}
Bxc3 {[%clk 00:49:53]} {[%emt 00:07:28]} 16. Bxc3 {[%clk 00:56:59]} {[%emt
00:06:19]} dxc4 {[%clk 00:44:15]} {[%emt 00:06:08]} 17. Bxc4 {[%clk 00:56:44]}
{[%emt 00:00:45]} Nb6 {[%clk 00:43:52]} {[%emt 00:00:54]} 18. Bb4 {[%clk
00:37:06]} {[%emt 00:20:08]} Qc7 {[%clk 00:43:55]} {[%emt 00:00:26]} 19. Ba2
{[%clk 00:36:28]} {[%emt 00:01:08]} O-O-O {[%clk 00:40:07]} {[%emt 00:04:18]}
20. O-O-O {[%clk 00:35:41]} {[%emt 00:01:16]} Nd5 {[%clk 00:28:43]} {[%emt
00:11:55]} 21. Bd2 {[%clk 00:35:47]} {[%emt 00:00:24]} Qb6 {[%clk 00:25:07]}
{[%emt 00:04:05]} 22. Kb1 {[%clk 00:31:02]} {[%emt 00:05:15]} Kb8 {[%clk
00:23:33]} {[%emt 00:02:05]} 23. Rc1 {[%clk 00:27:07]} {[%emt 00:04:23]} Rd7
{[%clk 00:22:25]} {[%emt 00:01:39]} 24. Ka1 {[%clk 00:24:25]} {[%emt 00:03:12]}
Qd8 {[%clk 00:22:45]} {[%emt 00:00:11]} 25. Rh2 {[%clk 00:23:06]} {[%emt
00:01:48]} Rh7 {[%clk 00:19:23]} {[%emt 00:03:53]} 26. Qf2 {[%clk 00:21:43]}
{[%emt 00:01:52]} Nde7 {[%clk 00:17:32]} {[%emt 00:02:22]} 27. h4 {[%clk
00:18:26]} {[%emt 00:03:47]} Ka8 {[%clk 00:12:19]} {[%emt 00:05:43]} 28. Bb1
{[%clk 00:17:54]} {[%emt 00:01:01]} Qb6 {[%clk 00:10:58]} {[%emt 00:01:51]} 29.
Bb4 {[%clk 00:13:31]} {[%emt 00:04:52]} Qd8 {[%clk 00:10:52]} {[%emt 00:00:37]}
30. Rch1 {[%clk 00:12:41]} {[%emt 00:01:20]} Rh5 {[%clk 00:06:57]} {[%emt
00:04:26]} 31. Be4 {[%clk 00:11:00]} {[%emt 00:02:10]} Nd5 {[%clk 00:06:02]}
{[%emt 00:01:26]} 32. Bd2 {[%clk 00:11:25]} {[%emt 00:00:05]} Nb6 {[%clk
00:04:29]} {[%emt 00:02:04]} 33. Bf3 {[%clk 00:11:32]} {[%emt 00:00:22]} Rh8
{[%clk 00:04:51]} {[%emt 00:00:07]} 34. h5 {[%clk 00:10:02]} {[%emt 00:02:01]}
gxh5 {[%clk 00:05:20]} {[%emt 00:00:01]} 35. Rxh5 {[%clk 00:09:47]} {[%emt
00:00:45]} Rxh5 {[%clk 00:02:50]} {[%emt 00:03:00]} 36. Rxh5 {[%clk 00:10:09]}
{[%emt 00:00:08]} Nc4 {[%clk 00:02:38]} {[%emt 00:00:42]} 37. Bc1 {[%clk
00:10:12]} {[%emt 00:00:26]} Re7 {[%clk 00:02:22]} {[%emt 00:00:46]} 38. Rh1
{[%clk 00:06:50]} {[%emt 00:03:51]} g6 {[%clk 00:02:05]} {[%emt 00:00:49]} 39.
e4 {[%clk 00:05:04]} {[%emt 00:02:16]} Nfd6 {[%clk 00:01:34]} {[%emt 00:01:01]}
40. Rd1 {[%clk 00:02:16]} {[%emt 00:03:17]} Rd7 {[%clk 00:00:45]} {[%emt
00:01:20]} 41. Qc2 {[%clk 00:01:00]} {[%emt 00:01:46]} Nb6 {[%clk 00:29:45]}
{[%emt 00:01:31]} 42. a4 {[%clk 00:29:08]} {[%emt 00:02:22]} Ne8 {[%clk
00:27:05]} {[%emt 00:03:10]} 43. Be3 {[%clk 00:28:48]} {[%emt 00:00:48]} Nc7
{[%clk 00:25:16]} {[%emt 00:02:20]} 44. Be2 {[%clk 00:26:12]} {[%emt 00:03:06]}
Nc8 {[%clk 00:25:13]} {[%emt 00:00:33]} 45. Rh1 {[%clk 00:23:54]} {[%emt
00:02:47]} Kb8 {[%clk 00:20:21]} {[%emt 00:05:23]} 46. Qc3 {[%clk 00:22:50]}
{[%emt 00:01:33]} Re7 {[%clk 00:19:04]} {[%emt 00:01:47]} 47. Qc5 {[%clk
00:20:22]} {[%emt 00:02:58]} Qd6 {[%clk 00:13:48]} {[%emt 00:05:46]} 48. Rh8
{[%clk 00:18:03]} {[%emt 00:02:48]} Re8 {[%clk 00:12:30]} {[%emt 00:01:49]} 49.
Rh7 {[%clk 00:18:02]} {[%emt 00:00:29]} Qxc5 {[%clk 00:07:37]} {[%emt
00:05:23]} 50. dxc5 {[%clk 00:18:28]} {[%emt 00:00:04]} Re7 {[%clk 00:07:49]}
{[%emt 00:00:19]} 51. Bd4 {[%clk 00:16:44]} {[%emt 00:02:13]} f5 {[%clk
00:06:21]} {[%emt 00:01:58]} 52. Rh6 {[%clk 00:15:23]} {[%emt 00:01:50]} fxe4
{[%clk 00:05:23]} {[%emt 00:01:28]} 53. Rxg6 {[%clk 00:15:49]} {[%emt
00:00:05]} b6 {[%clk 00:04:39]} {[%emt 00:01:14]} 54. Rg8 {[%clk 00:14:42]}
{[%emt 00:01:36]} bxc5 {[%clk 00:03:27]} {[%emt 00:01:43]} 55. Bxc5 {[%clk
00:13:41]} {[%emt 00:01:30]} Re8 {[%clk 00:02:49]} {[%emt 00:01:09]} 56. Rxe8
{[%clk 00:10:58]} {[%emt 00:03:14]} Nxe8 {[%clk 00:03:18]} {[%emt 00:00:01]} 57.
Bc4 {[%clk 00:10:31]} {[%emt 00:00:56]} Ng7 {[%clk 00:01:45]} {[%emt 00:02:03]}
58. Bf8 {[%clk 00:08:48]} {[%emt 00:02:13]} Nh5 {[%clk 00:01:40]} {[%emt
00:00:35]} 59. g6 {[%clk 00:09:03]} {[%emt 00:00:14]} e3 {[%clk 00:01:36]}
{[%emt 00:00:35]} 60. g7 {[%clk 00:04:27]} {[%emt 00:05:06]} Nf6 {[%clk
00:02:05]} {[%emt 00:00:01]} 61. Bxe6 {[%clk 00:01:22]} {[%emt 00:03:36]} e2
{[%clk 00:02:30]} {[%emt 00:00:04]} 62. Bb4 {[%clk 00:01:46]} {[%emt 00:00:05]}
Ne7 {[%clk 00:02:47]} {[%emt 00:00:13]} 63. Bc4 {[%clk 00:01:31]} {[%emt
00:00:45]} Nf5 {[%clk 00:02:11]} {[%emt 00:01:06]} 64. Bxe2 {[%clk 00:01:29]}
{[%emt 00:00:32]} Nxg7 {[%clk 00:02:40]} {[%emt 00:00:02]} 65. Bc3 {[%clk
00:01:30]} {[%emt 00:00:28]} Nge8 {[%clk 00:02:31]} {[%emt 00:00:39]} 66. Ka2
{[%clk 00:01:23]} {[%emt 00:00:37]} Kc7 {[%clk 00:02:09]} {[%emt 00:00:52]} 67.
b4 {[%clk 00:01:17]} {[%emt 00:00:35]} Nd5 {[%clk 00:01:02]} {[%emt 00:01:37]}
68. Be5+ {[%clk 00:01:40]} {[%emt 00:00:06]} Kd7 {[%clk 00:00:50]} {[%emt
00:00:43]} 69. Bg4+ {[%clk 00:01:56]} {[%emt 00:00:14]} Ke7 {[%clk 00:01:10]}
{[%emt 00:00:11]} 70. Kb3 {[%clk 00:02:22]} {[%emt 00:00:03]} Nef6 {[%clk
00:01:13]} {[%emt 00:00:28]} 71. Bf3 {[%clk 00:02:30]} {[%emt 00:00:22]} Nd7
{[%clk 00:00:46]} {[%emt 00:00:57]} 72. Bxd5 {[%clk 00:01:53]} {[%emt
00:01:08]} cxd5 {[%clk 00:01:14]} {[%emt 00:00:02]} 73. b5 {[%clk 00:02:11]}
{[%emt 00:00:11]} Kd8 {[%clk 00:00:32]} {[%emt 00:01:12]} 74. Bd4 {[%clk
00:02:34]} {[%emt 00:00:07]} a6 {[%clk 00:00:43]} {[%emt 00:00:19]} 75. bxa6
{[%emt 00:02:20]} Kc7 76. Kb4 {[%clk 00:00:55]} {[%emt 00:00:17]} Kc6 {[%clk
00:01:33]} {[%emt 00:00:11]} 77. f5 {[%clk 00:01:03]} {[%emt 00:00:23]} Nb8
{[%clk 00:01:31]} {[%emt 00:00:33]} 78. a7 {[%clk 00:01:22]} {[%emt 00:00:10]}
Na6+ {[%clk 00:02:00]} {[%emt 00:00:01]} 79. Ka5 {[%clk 00:01:43]} {[%emt
00:00:09]} Nc7 {[%clk 00:02:23]} {[%emt 00:00:08]} 80. Be5 {[%clk 00:01:53]}
{[%emt 00:00:19]} Na8 {[%clk 00:02:27]} {[%emt 00:00:26]} 81. f6 {[%clk
00:02:02]} {[%emt 00:00:20]} Nb6 {[%clk 00:01:07]} {[%emt 00:01:50]} 82. f7
{[%clk 00:01:55]} {[%emt 00:00:37]} Nc4+ {[%clk 00:00:41]} {[%emt 00:00:57]} 83.
Kb4 {[%clk 00:02:13]} {[%emt 00:00:12]} Nxe5 {[%clk 00:00:35]} {[%emt
00:00:36]} 1-0